Cogmind - Beta 13 @@@ ROGUE MODE // 2024.04.23 @ 12:29:39 Player: Nebula avali Result: Destroyed by S-27 Virus with Autogun Performance ------------- Evolutions (3) 1500 Regions Visited (10) 2000 Robots Destroyed (36) 180 Value Destroyed (900) 900 Prototype IDs (39) 780 Alien Tech Used (0) 0 Bonus (760) 760 TOTAL SCORE: 6120 Bonus ------- Follower Combat Kills 208 Aligned with FarCom 300 Met Data Miner 300 Friendly Fire -48 Cogmind --------- Core Integrity 0/700 Matter 280/300 Energy 80/100 System Corruption 0% Temperature Cool (0) Movement Core (50) Location -6/Proximity Caves Parts ------- > --- POWER (2) -------- (None) > --- PROPULSION (5) --- (None) > --- UTILITY (4) ------ Improved Signal Interpreter Improved Melee Analysis Suite Improved Hacking Suite > --- WEAPON (2) ------- Spear > --- INVENTORY (5) ---- Improved Sensor Array Core Analyzer System Restoration Module Molecular Deconstructor Peak State ------------ > --- POWER ------------ Light Ion Engine > --- PROPULSION ------- Xenon Bombardment Thruster Flying Fortress v7 > --- UTILITY ---------- Small Storage Unit Improved Signal Interpreter Improved Medium Armor Plating Splice Drone Bay > --- WEAPON ----------- Greatsword > --- INVENTORY -------- Improved Sensor Array Improved Sensor Array Improved Melee Analysis Suite Cloak of Protection System Restoration Module Precision Assault Rifle Grenade Launcher Field Lobotomy Kit [Rating: 63] Favorites ----------- Power Light Ion Engine Engine Light Ion Engine Power Core Light Nuclear Core Reactor Antimatter Reactor Propulsion Improved Treads Treads Improved Treads Leg Carbon-fiber Leg Flight Unit Flying Fortress v7 Utility Small Storage Unit Device Splice Drone Bay Storage Small Storage Unit Processor Improved Signal Interpreter Hackware System Shield Protection Improved Medium Armor Plating Weapon Assault Rifle Energy Gun Advanced Beam Rifle Energy Cannon Neutron Cannon Ballistic Gun Assault Rifle Launcher Grenade Launcher Special Weapon Molecular Deconstructor Slashing Weapon Greatsword Piercing Weapon Spear Build | -11 -10 -10 -10 -9 -8 -7 -7 -7 -7 -6 ------- Run | Yrd Mat Min Exi Min Mat Fac Low Low Dat Pro Slots Evolved 6 | . . . . . 4 2 . . . . Power 1 | . . . . . . 1 . . . . Propulsion 3 | . . . . . 2 1 . . . . Utility 2 | . . . . . 2 . . . . . Weapon . | . . . . . . . . . . . Parts Attached 54 | . 4 3 5 4 14 3 4 4 1 12 Power 8 | . . 2 . 1 3 . . . . 2 Engine 5 | . . 1 . . 3 . . . . 1 Core 2 | . . 1 . 1 . . . . . . Reactor 1 | . . . . . . . . . . 1 Propulsion 12 | . 2 . 2 . 1 1 . . . 6 Treads 4 | . 2 . 2 . . . . . . . Leg 6 | . . . . . . . . . . 6 Wheel . | . . . . . . . . . . . Hover . | . . . . . . . . . . . Flight 2 | . . . . . 1 1 . . . . Utility 16 | . 2 . 2 2 3 2 2 2 . 1 Device 4 | . . . 1 2 . . . 1 . . Storage 2 | . . . 1 . . 1 . . . . Processor 5 | . 2 . . . 1 . 1 1 . . Hackware 2 | . . . . . 1 . . . . 1 Protection 3 | . . . . . 1 1 1 . . . Artifact . | . . . . . . . . . . . Weapon 18 | . . 1 1 1 7 . 2 2 1 3 Energy Gun 1 | . . . . . 1 . . . . . Energy Cannon 1 | . . . . . . . . . . 1 Ballistic Gun 1 | . . . . . . . . 1 . . Ballistic Cannon . | . . . . . . . . . . . Launcher 6 | . . 1 1 . 3 . . 1 . . Special Weapon 1 | . . . . . . . . . 1 . Impact Weapon . | . . . . . . . . . . . Slashing Weapon 4 | . . . . 1 3 . . . . . Piercing Weapon 4 | . . . . . . . 2 . . 2 Special Melee Weapon . | . . . . . . . . . . . Unidentified Prototypes 6 | . . . 1 1 1 . . . 1 2 Corrupted Parts 1 | . . . . 1 . . . . . . System Corruption 3 | . . . . 3 . . . . . . Parts Lost 22 | . . . . . 7 . . 3 . 12 Power 5 | . . . . . 2 . . 1 . 2 Propulsion 9 | . . . . . 2 . . 1 . 6 Utility 5 | . . . . . 2 . . 1 . 2 Weapon 3 | . . . . . 1 . . . . 2 Highest Loss Streak 9 | . . . . . 4 . . 3 . 9 To Critical Strikes . | . . . . . . . . . . . Average Slot Usage (%) 77 | . 95 100 100 98 59 53 63 52 43 74 Engine 4 | . 14 8 . . 3 7 7 1 . 5 Core 3 | . . 5 14 14 2 . . . . . Treads 12 | . 15 28 28 28 17 . . . . . Leg 5 | . 10 . . . . . . . . 21 Flight 2 | . . . . . . 7 15 5 . . Device 5 | . . . 6 13 9 7 7 5 7 6 Storage 9 | . 14 14 14 14 9 7 7 7 7 6 Processor 10 | . 11 14 7 . . 7 9 15 15 15 Protection 1 | . . . . . 4 6 4 . . . Ballistic Gun 6 | . 28 22 7 . . . . 4 5 . Launcher 5 | . . 5 20 26 2 . . . . . Slashing Weapon 1 | . . . . . 7 7 4 . . . Piercing Weapon 3 | . . . . . . . 5 8 4 6 Naked Turns . | . . . . . . . . . . . Heaviest Build 42 | 12 12 15 24 24 30 28 28 20 12 42 Greatest Support 101 | 20 46 46 46 46 50 56 56 56 3 101 Greatest Overweight (x) 3 | . 3 . . . . . . 3 3 3 Average Overweight (x) . | . . . . . . . . . 3 . Largest Inventory Capacity 8 | . 8 8 8 8 8 8 8 8 8 8 Average Capacity 7 | . 8 8 8 8 8 8 8 8 8 7 Most Carried 8 | . 8 8 8 8 8 8 8 8 7 8 Average Carried 7 | . 6 7 6 7 7 6 8 6 5 7 Final Capacity 8 | 8 8 8 8 8 8 8 8 8 8 5 Final Carried 8 | 6 7 8 8 8 4 8 8 5 5 5 Class Distribution -------------------- 77% | Mutant 17% | Scavenger-Mutant 4% | Gladiator Dominant Class ---------------- Mutant | -10/Materials Mutant | -10/Mines Mutant | -10/Exiles Mutant | -9/Mines Mutant | -8/Materials Mutant | -7/Factory Mutant | -7/Lower Caves Mutant | -7/Lower Caves Mutant | -7/Data Miner Scavenger-Mutant | -6/Proximity Caves Resources | -11 -10 -10 -10 -9 -8 -7 -7 -7 -7 -6 ----------- Run | Yrd Mat Min Exi Min Mat Fac Low Low Dat Pro Matter Collected 1141 | 179 97 182 . 83 248 142 44 26 . 140 Remotely . | . . . . . . . . . . . Salvage Created 1207 | . 152 310 . 18 317 60 . 41 . 309 Parts 75 | . 14 15 . 6 25 1 . 3 . 11 Haulers Intercepted . | . . . . . . . . . . . Recyclers Shooed 1 | . . 1 . . . . . . . . Parts Field Recycled . | . . . . . . . . . . . Retrieved Matter . | . . . . . . . . . . . Parts Self-Destructed 26 | . . . . . . . . 3 . 23 Prevented . | . . . . . . . . . . . Kills | -11 -10 -10 -10 -9 -8 -7 -7 -7 -7 -6 ------- Run | Yrd Mat Min Exi Min Mat Fac Low Low Dat Pro Combat Hostiles Destroyed 28 | . 5 5 . 3 8 1 . 1 . 5 Melee 4 | . . . . . 1 1 . 1 . 1 Guns 10 | . 5 5 . . . . . . . . Cannons 3 | . . . . . . . . . . 3 AOE 11 | . . . . 3 7 . . . . 1 Classes Destroyed 8 | . 3 1 . . 3 . . 1 . . Worker 1 | . . . . . 1 . . . . . Builder 2 | . . . . . 2 . . . . . Recycler 3 | . . 1 . . 2 . . . . . Mechanic 2 | . 1 . . . 1 . . . . . Swarmer 14 | . 3 . . 3 3 . . . . 5 Grunt 9 | . 2 5 . . 2 . . . . . Sentry 4 | . . . . . 3 1 . . . . Programmer 1 | . . . . . . . . 1 . . Best Kill Streak 9 | . 4 2 . 3 9 1 . 1 . 4 Combat Bots Only 4 | . 3 2 . 3 3 1 . 1 . 4 Max Kills in Single Turn 4 | . 2 1 . 3 4 1 . 1 . 1 Gunslinging 1 | . 1 . . . . . . . . . Exploded 3 | . . . . 3 3 . . . . 1 Melee 1 | . . . . . 1 1 . 1 . 1 Uniques/NPCs Destroyed . | . . . . . . . . . . . Combat | -11 -10 -10 -10 -9 -8 -7 -7 -7 -7 -6 -------- Run | Yrd Mat Min Exi Min Mat Fac Low Low Dat Pro Hostile Shots Fired 492 | . 11 63 . . 87 39 3 70 . 219 Missed 193 | . 3 15 . . 36 12 1 36 . 90 Damage Taken 4279 | . 72 545 . 142 908 278 36 533 . 1765 Core 941 | . . 63 . 32 138 22 . 81 . 605 Absorbed by Shields . | . . . . . . . . . . . Regen/Repaired (Parts) 45 | . . . . . 45 . . . . . Core Remaining (%) 78 | 100 . . . 62 74 . . . . . Volleys Fired 64 | . 8 30 . 1 10 . . 4 . 11 Largest 2 | . 2 2 . 2 2 . . 1 . 1 Hottest 90 | . 40 40 . 60 60 . . 30 . 90 Shots Fired 111 | . 16 61 . 3 16 . . 4 . 11 Gun 78 | . 16 61 . . . . . 1 . . Cannon 11 | . . . . . . . . . . 11 Launcher 22 | . . . . 3 16 . . 3 . . Special . | . . . . . . . . . . . Kinetic 78 | . 16 61 . . . . . 1 . . Thermal 11 | . . . . . . . . . . 11 Explosive 22 | . . . . 3 16 . . 3 . . Electromagnetic . | . . . . . . . . . . . Robot Hit Streak 12 | . 7 9 . 1 12 . . 2 . 3 Robot Miss Streak 5 | . 1 5 . 1 1 . . 1 . 2 Penetration Max . | . . . . . . . . . . . Secondary Targets 3 | . 1 2 . . . . . . . . Max Gunslinging Chain 1 | . 1 1 . . . . . . . . Shots Hit Robots 94 | . 11 34 . 1 14 9 . 10 . 15 Core Hits 77 | . 8 13 . 3 29 2 . 13 . 9 Critical Kills . | . . . . . . . . . . . Critical Parts Destroyed . | . . . . . . . . . . . Critical Strikes 5 | . . . . . 2 2 . . . 1 Sever 4 | . . . . . 2 2 . . . . Impale 1 | . . . . . . . . . . 1 Melee Attacks 35 | . . . . . 3 9 . 14 . 9 Impact . | . . . . . . . . . . . Slashing 12 | . . . . . 3 9 . . . . Piercing 23 | . . . . . . . . 14 . 9 Sneak Attacks . | . . . . . . . . . . . Combat Hostiles . | . . . . . . . . . . . Follow-up Attacks . | . . . . . . . . . . . Damage Inflicted 3449 | . 143 396 . 148 965 485 . 628 . 684 Guns 551 | . 143 390 . . . . . 18 . . Cannons 221 | . . . . . . . . . . 221 Explosions 1379 | . . . . 148 804 . . 385 . 42 Melee 1292 | . . . . . 161 485 . 225 . 421 Ramming 6 | . . 6 . . . . . . . . Kinetic 551 | . 143 390 . . . . . 18 . . Thermal 263 | . . . . . . . . . . 263 Explosive 1337 | . . . . 148 804 . . 385 . . Electromagnetic . | . . . . . . . . . . . Impact . | . . . . . . . . . . . Slashing 646 | . . . . . 161 485 . . . . Piercing 646 | . . . . . . . . 225 . 421 Highest Corruption 5 | . 1 1 1 5 . . . . . . Average Corruption 1 | . 1 1 1 1 . . . . . . Corruption Purged . | . . . . . . . . . . . Corruption Blocked . | . . . . . . . . . . . Effects 12 | . 1 6 3 2 . . . . . . Message Errors 3 | . . 2 . 1 . . . . . . Matter Fused 3 | . . 1 2 . . . . . . . Energy Discharges 4 | . 1 2 1 . . . . . . . Misfires 2 | . . 1 . 1 . . . . . . Overload Shots . | . . . . . . . . . . . Overflow Damage 146 | . . . . . 6 13 . . . 127 Projectiles . | . . . . . . . . . . . Explosions 6 | . . . . . 6 . . . . . Melee 140 | . . . . . . 13 . . . 127 Knockbacks . | . . . . . . . . . . . Impact . | . . . . . . . . . . . Kinetic . | . . . . . . . . . . . Secondary . | . . . . . . . . . . . Self-Inflicted Damage 136 | . . . . 32 64 . . 40 . . Shots 4 | . . . . 1 2 . . 1 . . Rammed 3 | . . 3 . . . . . . . . Targets Rammed 4 | . . 4 . . . . . . . . Kicked . | . . . . . . . . . . . Crushed 1 | . . 1 . . . . . . . . Highest Temperature 387 | . . 20 . 6 29 . . 13 . 387 Average Temperature 105 | . . 4 . 4 15 . . 8 . 172 Received Heat Transfer 966 | . 12 264 . . 171 144 18 90 . 267 Effects 3 | . . . . . . . . . . 3 Shutdowns 2 | . . . . . . . . . . 2 Short Circuit 1 | . . . . . . . . . . 1 Siege Activations . | . . . . . . . . . . . Robots Corrupted . | . . . . . . . . . . . Combat Hostiles . | . . . . . . . . . . . Parts Fried . | . . . . . . . . . . . Impact Corruptions . | . . . . . . . . . . . Robots Melted . | . . . . . . . . . . . Combat Hostiles . | . . . . . . . . . . . Parts Melted . | . . . . . . . . . . . Heat Transferred 50 | . . . . . . . . . . 50 Parts Sabotaged . | . . . . . . . . . . . Parts Stolen 3 | . . . . . . . . 3 . . Parts Stripped . | . . . . . . . . . . . Power Chain Reactions 1 | . . . . . . . . . . 1 Alert | -11 -10 -10 -10 -9 -8 -7 -7 -7 -7 -6 ------- Run | Yrd Mat Min Exi Min Mat Fac Low Low Dat Pro Peak Influence 320 | . 179 184 . 165 320 121 . . . . Initial 79 | . . 69 . . 64 79 . . . . Average 120 | . 107 88 . 106 208 86 . . . . Maximum Alert Level 1 | . . . . . 1 . . . . . Low Security (%) 85 | . 100 100 . 100 36 100 . . . . Level 1 14 | . . . . . 63 . . . . . Level 2 . | . . . . . . . . . . . Level 3 . | . . . . . . . . . . . Level 4 . | . . . . . . . . . . . Level 5 . | . . . . . . . . . . . High Security . | . . . . . . . . . . . Max Security . | . . . . . . . . . . . Squads Dispatched 9 | . 3 . . . 4 1 . 1 . . Investigation 3 | . 3 . . . . . . . . . Extermination 1 | . . . . . . 1 . . . . Reinforcement 3 | . . . . . 3 . . . . . Assault 1 | . . . . . . . . 1 . . Garrison 1 | . . . . . 1 . . . . . Intercept . | . . . . . . . . . . . Searches Triggered . | . . . . . . . . . . . Construction Impeded 1 | . . . . . 1 . . . . . Haulers Reinforced . | . . . . . . . . . . . Active Scanning Responses . | . . . . . . . . . . . Cargo Convoy Interrupts . | . . . . . . . . . . . Stealth | -11 -10 -10 -10 -9 -8 -7 -7 -7 -7 -6 --------- Run | Yrd Mat Min Exi Min Mat Fac Low Low Dat Pro Distress Signals 1 | . . . . . 1 . . . . . Communications Jammed . | . . . . . . . . . . . Distress Signals . | . . . . . . . . . . . Times Spotted 77 | . 6 10 . . 15 1 8 19 . 18 Peak Tracking Total 14 | . 3 3 . . 6 1 4 14 . 7 Tactical Retreats 13 | . . 1 . . 3 . 2 6 . 1 Traps | -11 -10 -10 -10 -9 -8 -7 -7 -7 -7 -6 ------- Run | Yrd Mat Min Exi Min Mat Fac Low Low Dat Pro Traps Triggered 1 | . 1 . . . . . . . . . Indirectly . | . . . . . . . . . . . Trap Hack Attempts . | . . . . . . . . . . . Triggered . | . . . . . . . . . . . Disarmed . | . . . . . . . . . . . Reprogrammed . | . . . . . . . . . . . Reused . | . . . . . . . . . . . Traps Extracted . | . . . . . . . . . . . Installed . | . . . . . . . . . . . Triggered . | . . . . . . . . . . . Machines | -11 -10 -10 -10 -9 -8 -7 -7 -7 -7 -6 ---------- Run | Yrd Mat Min Exi Min Mat Fac Low Low Dat Pro Machines Disabled 1 | . . . . . . . . 1 . . Max in Single Turn 1 | . . . . . . . . 1 . . Machines Repaired . | . . . . . . . . . . . Machines Dismantled . | . . . . . . . . . . . Machines Sabotaged . | . . . . . . . . . . . Overloaded Fab Kills . | . . . . . . . . . . . Hacking | -11 -10 -10 -10 -9 -8 -7 -7 -7 -7 -6 --------- Run | Yrd Mat Min Exi Min Mat Fac Low Low Dat Pro Machines Accessed 19 | . 4 1 1 1 2 5 1 . 4 . Terminals 5 | . 4 . . . 1 . . . . . Fabricators 2 | . . . . . . 2 . . . . Repair Stations 2 | . . . . . 1 1 . . . . Recycling Units . | . . . . . . . . . . . Scanalyzers 1 | . . . . . . 1 . . . . Garrison Access 1 | . . . . . . 1 . . . . Total Hacks 63 | . 15 1 1 1 6 9 1 . 29 . Successful 41 | . 2 1 1 1 2 4 1 . 29 . Failed 22 | . 13 . . . 4 5 . . . . Catastrophic 10 | . 6 . . . 1 3 . . . . Database Lockouts . | . . . . . . . . . . . Manual 22 | . 15 . 1 . 3 2 . 1 . . Terminals 18 | . 15 . . . 3 . . . . . Fabricators 3 | . . . . . . 3 . . . . Repair Stations 4 | . . . . . 3 1 . . . . Recycling Units . | . . . . . . . . . . . Scanalyzers 3 | . . . . . . 3 . . . . Garrison Access 2 | . . . . . . 2 . . . . Terminal Hacks 33 | . . 1 1 1 . . 1 . 29 . Record 11 | . . . . . . . . . 11 . Part Schematic 10 | . . . . . . . . . 10 . Robot Schematic 5 | . . . . . . . . . 5 . Prototype ID Bank 3 | . . . . . . . . . 3 . Open Door 3 | . . 1 . 1 . . 1 . . . Derelict Proto ID Bank 1 | . . . 1 . . . . . . . Fabricator Hacks 1 | . . . . . . 1 . . . . Build 1 | . . . . . . 1 . . . . Repair Station Hacks 2 | . . . . . 2 . . . . . Scan Component 1 | . . . . . 1 . . . . . Repair 1 | . . . . . 1 . . . . . Recycling Unit Hacks . | . . . . . . . . . . . Scanalyzer 3 | . . . . . . 3 . . . . Insert Component 1 | . . . . . . 1 . . . . Analyze 2 | . . . . . . 2 . . . . Garrison Access Hacks . | . . . . . . . . . . . Unauthorized Hacks 2 | . 2 . . . . . . . . . Terminals 2 | . 2 . . . . . . . . . Botnet 2 | . 2 . . . . . . . . . Fabricators . | . . . . . . . . . . . Repair Stations . | . . . . . . . . . . . Recycling Units . | . . . . . . . . . . . Scanalyzers . | . . . . . . . . . . . Garrison Access . | . . . . . . . . . . . Data Cores Recovered . | . . . . . . . . . . . Used . | . . . . . . . . . . . Hacking Detections 11 | . 4 . . . 2 5 . . . . Full Trace Events 3 | . 3 . . . . . . . . . Feedback Events 1 | . 1 . . . . . . . . . Corruption 1 | . 1 . . . . . . . . . Feedback Blocked . | . . . . . . . . . . . Robot Schematics Acquired 5 | . . . . . . . . . 5 . Robots Built 1 | . . . . . . 1 . . . . Authchips . | . . . . . . . . . . . Time 81 | . . . . . . 81 . . . . Total Robot Build Rating 1 | . . . . . . 1 . . . . Part Schematics Acquired 11 | . . . . . . 1 . . 10 . Parts Built . | . . . . . . . . . . . Authchips . | . . . . . . . . . . . Time . | . . . . . . . . . . . Total Part Build Rating . | . . . . . . . . . . . Parts Repaired 1 | . . . . . 1 . . . . . Time 26 | . . . . . 26 . . . . . Parts Recycled . | . . . . . . . . . . . Recycled Matter . | . . . . . . . . . . . Retrieved Matter . | . . . . . . . . . . . Retrieved Components . | . . . . . . . . . . . Parts Scanalyzed 1 | . . . . . . 1 . . . . Part Schematics Acquired 1 | . . . . . . 1 . . . . Parts Damaged . | . . . . . . . . . . . Bothacking | -11 -10 -10 -10 -9 -8 -7 -7 -7 -7 -6 ------------ Run | Yrd Mat Min Exi Min Mat Fac Low Low Dat Pro Used RIF Installer . | . . . . . . . . . . . Robots Hacked . | . . . . . . . . . . . Non-combat . | . . . . . . . . . . . Combat . | . . . . . . . . . . . Robot Hacks Applied . | . . . . . . . . . . . Relay Couplers Released . | . . . . . . . . . . . Fabnet Peak Effective % . | . . . . . . . . . . . Robots Rewired . | . . . . . . . . . . . Allies Hacked . | . . . . . . . . . . . Hacks Repelled . | . . . . . . . . . . . Allies | -11 -10 -10 -10 -9 -8 -7 -7 -7 -7 -6 -------- Run | Yrd Mat Min Exi Min Mat Fac Low Low Dat Pro Total Allies 4 | . . . . 2 . 1 . . . 1 Largest Group 2 | . . . . 2 1 1 . . . 1 Highest-Rated Group 96 | . . . . 45 31 8 . . . 96 Highest-Rated Ally 96 | . . . . 31 31 8 . . . 96 Total Orders 6 | . . . 2 . . 2 2 . . . FOLLOW 1 | . . . . . . 1 . . . . COLLECT 1 | . . . . . . 1 . . . . EXPLORE 2 | . . . 1 . . . 1 . . . RETURN 2 | . . . 1 . . . 1 . . . Ally Attacks 26 | . . . . 7 3 . . . . 16 Total Damage 683 | . . . . 125 43 . . . . 515 Kills 9 | . . . . 3 . . . . . 6 Allies Corrupted . | . . . . . . . . . . . Allies Melted . | . . . . . . . . . . . Intel | -11 -10 -10 -10 -9 -8 -7 -7 -7 -7 -6 ------- Run | Yrd Mat Min Exi Min Mat Fac Low Low Dat Pro Robot Analysis Total . | . . . . . . . . . . . Derelict Logs Recovered 9 | . . 2 . . . . 2 2 . 3 Drone Launches 3 | . . . 1 . . . 2 . . . Drone Recoveries 3 | . . . 1 . . . 2 . . . Exploration | -11 -10 -10 -10 -9 -8 -7 -7 -7 -7 -6 ------------- Run | Yrd Mat Min Exi Min Mat Fac Low Low Dat Pro Turns Passed 4393 | . 257 718 488 261 443 263 352 365 197 1049 Spaces Moved 3404 | 1 153 375 296 142 180 298 767 348 98 746 Core 237 | . 6 . . . . . . 91 98 42 Treads 1062 | . 80 375 296 142 169 . . . . . Legs 772 | 1 67 . . . . . . . . 704 Wheels . | . . . . . . . . . . . Hover . | . . . . . . . . . . . Flight 1333 | . . . . . 11 298 767 257 . . Fastest Speed 42 | 120 120 160 160 160 50 42 42 42 200 50 Average Speed 107 | 120 144 160 160 160 153 49 42 85 200 121 Slowest Speed 200 | 120 200 160 160 160 160 50 42 200 200 200 Overloaded Moves . | . . . . . . . . . . . Propulsion Burnouts . | . . . . . . . . . . . Robots Hopped . | . . . . . . . . . . . Cave-ins Triggered . | . . . . . . . . . . . Exploration Rate (%) 53 | 2 41 75 88 42 25 8 89 55 74 86 Regions Visited 10 Branch Regions 7 Pre-discovered Areas 2 | . . . . . . . . . 1 1 Known Exits Taken 8 | . 1 1 1 . 1 1 1 1 1 . Unknown Exits Taken 2 | 1 . . . 1 . . . . . . Scrap Searched 8 | . . 1 . 1 . . 3 1 . 2 Spaces Dug . | . . . . . . . . . . . Terrain Destroyed 152 | . . . . 25 91 . . 31 . 5 Melee . | . . . . . . . . . . . Projectile 5 | . . . . . . . . . . 5 AOE 147 | . . . . 25 91 . . 31 . . Terrain Rammed . | . . . . . . . . . . . Walls Destroyed . | . . . . . . . . . . . Machines Disabled . | . . . . . . . . . . . Actions | -11 -10 -10 -10 -9 -8 -7 -7 -7 -7 -6 --------- Run | Yrd Mat Min Exi Min Mat Fac Low Low Dat Pro Total 3965 | . 176 431 316 175 324 395 795 393 101 859 Wait 338 | . . 15 2 20 106 79 22 18 1 75 Move 3394 | . 152 374 295 141 179 297 766 347 97 746 Hop . | . . . . . . . . . . . Pick Up 28 | . 4 2 5 3 5 5 . 2 . 2 Fast Attach 31 | . 4 1 . 2 7 2 4 . . 11 Attach 18 | . . . 4 1 7 . . 4 1 1 Detach 11 | . 3 . 1 . 2 . . 2 2 1 Swap 5 | . . 2 1 1 . 1 . . . . Drop 34 | . 5 3 8 6 5 2 3 2 . . Fire 64 | . 8 30 . 1 10 . . 4 . 11 Melee 35 | . . . . . 3 9 . 14 . 9 Ram . | . . . . . . . . . . . Kick . | . . . . . . . . . . . Crush 4 | . . 4 . . . . . . . . Escape Stasis . | . . . . . . . . . . . Rewire 3 | . . . . . . . . . . 3 Trap . | . . . . . . . . . . . Miscellaneous . | . . . . . . . . . . . Route ------- -11/Scrapyard -10/Materials -10/Mines (discovered 3 exits: *Mat x2 / *Exi) -10/Exiles (discovered 2 exits: *Min x2) -9/Mines -8/Materials -7/Factory -7/Lower Caves -7/Lower Caves (discovered 2 exits: *Fac / *Dat) -7/Data Miner -6/Proximity Caves (discovered 1 exit: *Fac) History --------- Turn | Location | Event 1 | -11/Scrapyard | Discovered new exit (range 0) 1 | -11/Scrapyard | Entered Materials 234 | -10/Materials | Discovered new exit (range 15) 257 | -10/Materials | Identified exit to Mines 258 | -10/Materials | Entered Mines 303 | -10/Mines | Build established: Mutant 388 | -10/Mines | Discovered new exit (range 5) 391 | -10/Mines | Identified exit to Materials 397 | -10/Mines | Found the Drone Emporium 408 | -10/Mines | Found Prototype Device 592 | -10/Mines | Discovered exit to Materials (range 8) 931 | -10/Mines | Deemed a non-threat by the Exiles lab entrance 931 | -10/Mines | Discovered new exit (range 5) 974 | -10/Mines | Identified exit to Exiles 976 | -10/Mines | Entered Exiles 977 | -10/Exiles | Identified exit to Mines 1038 | -10/Exiles | Met 8R-AWN 1063 | -10/Exiles | Met EX-HEX 1147 | -10/Exiles | Met EX-BIN 1166 | -10/Exiles | Aligned with FarCom system 1167 | -10/Exiles | Given EX-Vault access code 1212 | -10/Exiles | Opened EX-Vault 1223 | -10/Exiles | Found Flying Fortress v7 1229 | -10/Exiles | Found Cloak of Protection 1247 | -10/Exiles | Identified Splice Drone Bay 1262 | -10/Exiles | Found Field Lobotomy Kit 1299 | -10/Exiles | Warned to stay clear of 0b10 Research branches 1350 | -10/Exiles | Met EX-DEC 1464 | -10/Exiles | Stole three prototypes: Flying Fortress v7, Cloak of Protection, Field Lobotomy Kit 1464 | -10/Exiles | Entered Mines 1497 | -9/Mines | Met a Derelict who couldn't figure out how to use a Trap Extractor 1632 | -9/Mines | Found a damaged Exp. Sensor Array with a note attached 1636 | -9/Mines | Found Prototype Device 1636 | -9/Mines | Identified Exp. Sensor Array 1709 | -9/Mines | Discovered new exit (range 7) 1725 | -9/Mines | Entered Materials 1725 | -8/Materials | Accompanied by 1 ally 1725 | -8/Materials | Evolved 4 slots: Propulsion x2, Utility x2 1731 | -8/Materials | Led the pair of lost Derelicts to an unsafe place 1825 | -8/Materials | Garrison activated, responded to threat 1890 | -8/Materials | Lost 3 parts (1p1u1w) 2082 | -8/Materials | Repaired Grenade Launcher 2166 | -8/Materials | Discovered new exit (range 6) 2167 | -8/Materials | Identified exit to Factory 2168 | -8/Materials | Entered Factory 2168 | -7/Factory | Evolved 2 slots: Power x1, Propulsion x1 2170 | -7/Factory | FarCom data flow suspended 2191 | -7/Factory | Lost 4 parts (1p2n1u) 2358 | -7/Factory | Fabricated R-06 Scavenger (x1) 2364 | -7/Factory | Discovered new exit (range 15) 2431 | -7/Factory | Identified exit to Lower Caves 2431 | -7/Factory | Entered Lower Caves 2469 | -7/Lower Caves | Encountered a Warlord checkpoint 2552 | -7/Lower Caves | Learned 4 Factory zone layouts 2555 | -7/Lower Caves | Learned Factory emergency access door positions 2704 | -7/Lower Caves | Discovered new exit (range 19) 2717 | -7/Lower Caves | Identified exit to Lower Caves 2783 | -7/Lower Caves | Entered another Lower Caves area 2810 | -7/Lower Caves | Discovered new exit (range 14) 2849 | -7/Lower Caves | Attracted the attention of an 0b10 outpost 2892 | -7/Lower Caves | Identified exit to Data Miner 2905 | -7/Lower Caves | Spotted B-75 Beast 2909 | -7/Lower Caves | Acquired the password to a Derelict Tinkerer's latest research 2921 | -7/Lower Caves | Found Prototype Special Weapon 2928 | -7/Lower Caves | Lost 3 parts (1p1n1u) 2950 | -7/Lower Caves | Spotted VU-JFW(f) 2951 | -7/Lower Caves | Encountered a Master Thief 2953 | -7/Lower Caves | Spotted IR-FU8(f) 2954 | -7/Lower Caves | Encountered a Master Thief 2954 | -7/Lower Caves | Spotted PW-MIJ(f) 2954 | -7/Lower Caves | Cloak of Protection stolen by Master Thief 2955 | -7/Lower Caves | Encountered a Master Thief 2957 | -7/Lower Caves | Field Lobotomy Kit stolen by Master Thief 2963 | -7/Lower Caves | Flying Fortress v7 stolen by Master Thief 3028 | -7/Lower Caves | Learned Factory stockpile data 3148 | -7/Lower Caves | Entered Data Miner 3148 | -7/Data Miner | Discovered new exit (range 6) 3189 | -7/Data Miner | Met Data Miner 3249 | -7/Data Miner | Learned location of Section 7 (-2) 3249 | -7/Data Miner | Acquired the access code to Warlord's prototype stash 3267 | -7/Data Miner | Received God Mode back door access code from Data Miner 3291 | -7/Data Miner | Identified Molecular Deconstructor 3343 | -7/Data Miner | Identified exit to Proximity Caves 3345 | -7/Data Miner | Entered Proximity Caves 3545 | -6/Proximity Caves | Escorted by Enhanced Grunt 3857 | -6/Proximity Caves | Build established: Scavenger-Mutant 4039 | -6/Proximity Caves | Identified exit to Factory 4322 | -6/Proximity Caves | Attracted the attention of an 0b10 base 4367 | -6/Proximity Caves | Core integrity fell below 50% 4371 | -6/Proximity Caves | Attracted the attention of an 0b10 checkpoint 4389 | -6/Proximity Caves | Core integrity fell below 20% 4394 | -6/Proximity Caves | Destroyed by S-27 Virus with Autogun Last Messages --------------- 04039_ Acquired derelict log, extracted data. 04321_ S-27 Virus springs to life. 04321_ G-50 Soldier springs to life. 04321_ G-50 Soldier suffers critical hit (Burn). 04322_ S-27 Virus springs to life. 04322_ G-50 Soldier springs to life. 04322_ S-27 Virus springs to life. 04322_ G-50 Soldier springs to life. 04330_ Lgt. Angular Momentum Engine destroyed. 04344_ Broken Carbon-fiber Leg destroyed. 04349_ Antimatter Reactor destroyed. 04351_ Neutron Cannon destroyed. 04358_ Imp. Sensor Array destroyed. 04370_ Enh. Flexi-carbon Leg destroyed. 04371_ Y-54 Guardian: "INTERCEPTING UNREGISTERED DERELICT." 04385_ Spear destroyed. 04385_ Enh. Flexi-carbon Leg destroyed. 04388_ Sml. Storage Unit destroyed. 04389_ Acquired Spear. 04391_ Acquired Imp. Hacking Suite. Map ----- +----------------------------------------------------+ | % #???????# %% #???????????????????????? | | ?# %#???????# % ##??????????????????????? | | ?# #???????# ####???????????????????? | | ?# # ######### ##??????????????????? | | ??# # ##?????????????????? | | ### # ########## ### ####??????????????? | | # #???????########% #??????????????? | | # #????????????# #??????????????? | | ##????????????# # #??????????????? | | %###?????????????# #?? #??????????????? | | ##??????????????# #?? #??????????????? | | % % ##?????????????# Y #? #??????????????? | | #???????????### ## #??????????????? | | % #????###???## s ##?????????????? | | % % %#????# ### #?????????????? | | ### #????# % #?????????????? | | ###% ###??# #?????????????? | | ### % ##?# #### ### #?????????????? | | ##?# #?# ????## #??##?????????????? | | ??# % ##???????## ##????????????????? | | ?# ##???????##! #????????????????? | | # %%% #???# ???#!% ###??????????????? | | ## ### #??## ## [ ##?????????????? | | ?# ##??###??# #?????????????? | | ?##??????? ##?????????????? | | ?????????? ## @ ######??????????????? | | ??????????? #?# < #???????????????????? | | ???????????? ??## #??????????????????? | | ????????????? ?????# #?????????????????? | | ????????????????????# #?????????????????? | | ????????????????????# ## ##?????????????????? | | ????????????????????# ##?? ##??????????????????? | | ????????????????????###???? ##???????????????????? | | ???????????????????????????##????????????????????? | | ?????????????????????????????????????????????????? | | ?????????????????????????????????????????????????? | | ?????????????????????????????????????????????????? | | ?????????????????????????????????????????????????? | | ?????????????????????????????????????????????????? | | ?????????????????????????????????????????????????? | | ?????????????????????????????????????????????????? | | ?????????????????????????????????????????????????? | | ?????????????????????????????????????????????????? | | ?????????????????????????????????????????????????? | | ?????????????????????????????????????????????????? | | ?????????????????????????????????????????????????? | | ?????????????????????????????????????????????????? | | ?????????????????????????????????????????????????? | | ?????????????????????????????????????????????????? | | | +----------------------------------------------------+ Best States ------------- Heat Dissipation 34 Energy Generation 34 Energy Capacity 375 Matter Stores 300 Matter Capacity 300 Sight Range 16 Robot Scan Range 15 Terrain Scan Density 10 Armor Coverage 225 Evasion (%) 61 Targeting Accuracy 5 Melee Accuracy 12 Recoil Reduction 2 Defensive Hacking 10 Item Schematics ----------------- Prc. Assault Rifle | -7/Factory | Scanalyzed Combat Drone Bay | -7/Data Miner | Free Lgt. Regenerative Plating | -7/Data Miner | Free Biomechanical Wings | -7/Data Miner | Free Exp. Targeting Computer | -7/Data Miner | Free Gui. EMP Blaster | -7/Data Miner | Free Gyrokinetic Inverter | -7/Data Miner | Free Lyr. Heavy Armor Plating | -7/Data Miner | Free Imp. Plasma Cutter | -7/Data Miner | Free Phase Shifter | -7/Data Miner | Free Arm. Medium Treads | -7/Data Miner | Free Robot Schematics ------------------ A-15 Conveyor | -7/Data Miner | Free G-47 Trooper | -7/Data Miner | Free R-10 Processor | -7/Data Miner | Free H-66 Slayer | -7/Data Miner | Free S-27 Virus | -7/Data Miner | Free Fabricated ------------ R-06 Scavenger | x1 | -7/Factory | Preloaded Alien Tech Used ----------------- None Achievements -------------- Safety First Challenges ------------ None Game ------ Seed StasisWeightSubcomponent Manual? 1 Play Time 00:44:15 Cumulative 48.3 hours Start 2024.04.23 @ 11:21:26 End 2024.04.23 @ 12:29:39 Sessions 1 Manual Loads 0 Difficulty Rogue Special Mode None Game No. 82 Rogue 81 Adventurer 1 Explorer 0 Win Type - Total 2 Types 2/0/0/0/0/0/0/0/0 Lore% 26 Gallery% 51 Achievement% 41 Wizard Run 0 Options --------- Layout 0 ASCII 0 Keyboard 0 Movement Numpad Keybinds 0 Fullscreen 1 Font 18/SmallcapsGlow Map View 76x50 Zoom Use 0% Tactical HUD 1 Map Filters NONE Filters NONE Steam 1 RUN: 2248e9b4-ee96-47bf-b9d5-d666aa604535